[Event "*** Titled Tuesday Blitz"]
[Site "Chess.com"]
[Date "2021.03.16"]
[Round "5"]
[White "CSB7"]
[Black "organdzievhren"]
[Result "1-0"]
[WhiteElo "2606"]
[BlackElo "2424"]
[TimeControl "180+1"]
[EndTime "10:56:20 PDT"]
[Termination "CSB7 won by resignation"]

1. e4 {[%clk 0:03:00.9]} 1... e6 {[%clk 0:03:00]} 2. d4 {[%clk 0:02:59.2]} 2...
d5 {[%clk 0:03:00.9]} 3. Nd2 {[%clk 0:02:58.7]} 3... dxe4 {[%clk 0:03:01.8]} 4.
Nxe4 {[%clk 0:02:58.6]} 4... Bd7 {[%clk 0:03:01.7]} 5. Nf3 {[%clk 0:02:58.1]}
5... Bc6 {[%clk 0:03:02.1]} 6. Bd3 {[%clk 0:02:57.8]} 6... Nd7 {[%clk
0:03:02.3]} 7. c3 {[%clk 0:02:57.3]} 7... Be7 {[%clk 0:03:03.2]} 8. O-O {[%clk
0:02:51.5]} 8... Ngf6 {[%clk 0:03:03.3]} 9. Nxf6+ {[%clk 0:02:51.7]} 9... Nxf6
{[%clk 0:03:03.2]} 10. Ne5 {[%clk 0:02:50]} 10... O-O {[%clk 0:02:59.4]} 11.
Nxc6 {[%clk 0:02:46.7]} 11... bxc6 {[%clk 0:03:00.3]} 12. Qe2 {[%clk 0:02:39.7]}
12... c5 {[%clk 0:02:58.8]} 13. dxc5 {[%clk 0:02:37.2]} 13... Bxc5 {[%clk
0:02:56.5]} 14. Rd1 {[%clk 0:02:33.9]} 14... Qe7 {[%clk 0:02:46]} 15. Bg5 {[%clk
0:02:29.2]} 15... Rad8 {[%clk 0:02:43]} 16. Bxf6 {[%clk 0:02:04.3]} 16... Qxf6
{[%clk 0:02:40.4]} 17. Bxh7+ {[%clk 0:02:00]} 17... Kxh7 {[%clk 0:02:40]} 18.
Qh5+ {[%clk 0:01:59.8]} 18... Kg8 {[%clk 0:02:35.9]} 19. Qxc5 {[%clk 0:02:00.7]}
19... Qf4 {[%clk 0:02:09.6]} 20. Qxa7 {[%clk 0:01:40.7]} 20... Rd2 {[%clk
0:02:08.8]} 21. Rxd2 {[%clk 0:01:09.8]} 21... Qxd2 {[%clk 0:02:07.9]} 22. Qb7
{[%clk 0:01:09.2]} 22... Rd8 {[%clk 0:02:04.4]} 23. g3 {[%clk 0:00:52.5]} 23...
c6 {[%clk 0:02:02.9]} 24. a4 {[%clk 0:00:45.8]} 24... Qe2 {[%clk 0:01:58.7]} 25.
Qxc6 {[%clk 0:00:26.6]} 25... Qxb2 {[%clk 0:01:58.2]} 26. Rf1 {[%clk 0:00:24.1]}
26... Qa2 {[%clk 0:01:43.5]} 27. h4 {[%clk 0:00:21.5]} 27... g6 {[%clk
0:01:43.4]} 28. c4 {[%clk 0:00:16.9]} 28... Rd4 {[%clk 0:01:38.2]} 29. c5 {[%clk
0:00:16.6]} 29... Rxa4 {[%clk 0:01:34.2]} 30. Qd7 {[%clk 0:00:14]} 30... Rc4
{[%clk 0:01:29]} 31. Rd1 {[%clk 0:00:10.6]} 31... Qc2 {[%clk 0:01:25.3]} 32.
Qe8+ {[%clk 0:00:07.3]} 32... Kg7 {[%clk 0:01:25]} 33. Rd8 {[%clk 0:00:04.4]}
33... Kf6 {[%clk 0:01:07.8]} 34. Rd7 {[%clk 0:00:04.4]} 34... Qc1+ {[%clk
0:00:55.6]} 35. Kg2 {[%clk 0:00:03]} 35... Ke5 {[%clk 0:00:51.6]} 36. Qxf7
{[%clk 0:00:02]} 36... Qh6 {[%clk 0:00:46.8]} 37. Qe7 {[%clk 0:00:01.4]} 37...
Rd4 {[%clk 0:00:45.6]} 38. Rxd4 {[%clk 0:00:00.9]} 38... Kxd4 {[%clk 0:00:45.9]}
39. Qd6+ {[%clk 0:00:01.8]} 39... Kc4 {[%clk 0:00:46.1]} 40. c6 {[%clk
0:00:02.3]} 40... Qh8 {[%clk 0:00:41.9]} 41. Qd7 {[%clk 0:00:01.9]} 41... Qa8
{[%clk 0:00:41.4]} 42. Qxe6+ {[%clk 0:00:01.5]} 42... Kc5 {[%clk 0:00:41.5]} 43.
Qxg6 {[%clk 0:00:02.4]} 43... Kb6 {[%clk 0:00:40.1]} 44. h5 {[%clk 0:00:02.8]}
44... Qd8 {[%clk 0:00:37.5]} 45. h6 {[%clk 0:00:03.2]} 45... Qd5+ {[%clk
0:00:37.7]} 46. Kh2 {[%clk 0:00:03.6]} 46... Qf3 {[%clk 0:00:37.5]} 47. Qc2
{[%clk 0:00:03.1]} 47... Qh5+ {[%clk 0:00:36.9]} 48. Kg2 {[%clk 0:00:03.6]}
48... Qd5+ {[%clk 0:00:35.5]} 49. f3 {[%clk 0:00:03.5]} 49... Kc7 {[%clk
0:00:35.7]} 50. h7 {[%clk 0:00:03.4]} 50... Qh5 {[%clk 0:00:34.8]} 51. g4 {[%clk
0:00:03.5]} 51... Qh6 {[%clk 0:00:34.3]} 52. Qf5 {[%clk 0:00:03.9]} 52... Qd2+
{[%clk 0:00:34]} 53. Kg3 {[%clk 0:00:03.9]} 53... Qe1+ {[%clk 0:00:34.3]} 54.
Kf4 {[%clk 0:00:04.3]} 54... Qd2+ {[%clk 0:00:34.6]} 55. Ke5 {[%clk 0:00:04.6]}
55... Qd6+ {[%clk 0:00:33.6]} 56. Ke4 {[%clk 0:00:04.9]} 56... Qb4+ {[%clk
0:00:33.8]} 57. Ke3 {[%clk 0:00:04.4]} 57... Qe1+ {[%clk 0:00:34.1]} 58. Kf4
{[%clk 0:00:03]} 58... Qd2+ {[%clk 0:00:32.5]} 59. Kg3 {[%clk 0:00:03.1]} 59...
Qe1+ {[%clk 0:00:32.6]} 60. Kg2 {[%clk 0:00:02.7]} 60... Qe2+ {[%clk 0:00:32.9]}
61. Kh3 {[%clk 0:00:03.2]} 61... Qf1+ {[%clk 0:00:28.3]} 62. Kh4 {[%clk
0:00:03.6]} 62... Qe1+ {[%clk 0:00:28.8]} 63. Kg5 {[%clk 0:00:03.8]} 63... Qe7+
{[%clk 0:00:28.6]} 64. Kg6 {[%clk 0:00:03.6]} 64... Qd8 {[%clk 0:00:25.6]} 65.
Qf7+ {[%clk 0:00:03.6]} 65... Kb6 {[%clk 0:00:25.6]} 66. Qf6 {[%clk 0:00:03.7]}
66... Qe8+ {[%clk 0:00:25.1]} 67. Kg7 {[%clk 0:00:03.1]} 67... Qe3 {[%clk
0:00:22.7]} 68. c7+ {[%clk 0:00:03.2]} 68... Kb7 {[%clk 0:00:22.5]} 69. c8=Q+
{[%clk 0:00:03.1]} 69... Ka7 {[%clk 0:00:23]} 70. Qf7+ {[%clk 0:00:02.8]} 70...
Kb6 {[%clk 0:00:22.2]} 71. Qcb7+ {[%clk 0:00:03.6]} 71... Ka5 {[%clk 0:00:21.9]}
72. Qfd5+ {[%clk 0:00:04.4]} 72... Ka4 {[%clk 0:00:21.7]} 73. Qbb3+ {[%clk
0:00:05.2]} 73... Qxb3 {[%clk 0:00:20.8]} 74. Qxb3+ {[%clk 0:00:06.1]} 74...
Kxb3 {[%clk 0:00:21.6]} 75. f4 {[%clk 0:00:07]} 75... Kc4 {[%clk 0:00:22.5]} 76.
f5 {[%clk 0:00:07.9]} 76... Kd5 {[%clk 0:00:23.4]} 77. f6 {[%clk 0:00:08.8]}
77... Ke6 {[%clk 0:00:24.1]} 78. f7 {[%clk 0:00:09.7]} 78... Ke5 {[%clk
0:00:24.9]} 79. g5 {[%clk 0:00:10.5]} 79... Kf4 {[%clk 0:00:25.8]} 80. g6 {[%clk
0:00:11.4]} 80... Kg4 {[%clk 0:00:26.5]} 81. f8=Q {[%clk 0:00:12.3]} 81... Kg5
{[%clk 0:00:27.4]} 82. Kg8 {[%clk 0:00:12.8]} 82... Kh5 {[%clk 0:00:27.8]} 83.
h8=Q+ {[%clk 0:00:12.9]} 83... Kg5 {[%clk 0:00:27.9]} 84. g7 {[%clk 0:00:13.4]}
84... Kg6 {[%clk 0:00:28.5]} 85. Qf7+ {[%clk 0:00:12.9]} 85... Kg5 {[%clk
0:00:29.4]} 86. Kf8 {[%clk 0:00:13.4]} 86... Kg4 {[%clk 0:00:28.8]} 87. Ke7
{[%clk 0:00:13.5]} 87... Kg5 {[%clk 0:00:29.7]} 88. Kd6 {[%clk 0:00:13.8]} 88...
Kg4 {[%clk 0:00:30.6]} 89. Kc5 {[%clk 0:00:14.7]} 89... Kg5 {[%clk 0:00:31.5]}
90. Kb4 {[%clk 0:00:15.4]} 1-0

[Event "*** Titled Tuesday Blitz"]
[Site "Chess.com"]
[Date "2021.03.16"]
[Round "5"]
[White "Gabrielian_Artur"]
[Black "Niktlt"]
[Result "0-1"]
[WhiteElo "2769"]
[BlackElo "2499"]
[TimeControl "180+1"]
[EndTime "10:56:55 PDT"]
[Termination "Niktlt won by checkmate"]

1. e4 {[%clk 0:03:00.9]} 1... e6 {[%clk 0:02:59.5]} 2. d3 {[%clk 0:02:59.6]}
2... d5 {[%clk 0:02:59.8]} 3. Qe2 {[%clk 0:02:59.9]} 3... c5 {[%clk 0:03:00.5]}
4. Nf3 {[%clk 0:02:59.6]} 4... Nc6 {[%clk 0:03:00.3]} 5. g3 {[%clk 0:03:00]}
5... Nf6 {[%clk 0:02:59]} 6. Bg2 {[%clk 0:03:00.4]} 6... g6 {[%clk 0:02:59.2]}
7. O-O {[%clk 0:02:59.1]} 7... Bg7 {[%clk 0:02:59.6]} 8. Re1 {[%clk 0:02:58.6]}
8... O-O {[%clk 0:02:59.6]} 9. e5 {[%clk 0:02:55.5]} 9... Nd7 {[%clk 0:02:59.2]}
10. Bf4 {[%clk 0:02:55.4]} 10... a5 {[%clk 0:02:58.2]} 11. c4 {[%clk 0:02:54.9]}
11... Nb6 {[%clk 0:02:48.3]} 12. Nc3 {[%clk 0:02:53.4]} 12... a4 {[%clk
0:02:41.7]} 13. a3 {[%clk 0:02:51.6]} 13... Bd7 {[%clk 0:02:36.8]} 14. h4 {[%clk
0:02:51]} 14... h6 {[%clk 0:02:36.5]} 15. Rad1 {[%clk 0:02:48.2]} 15... Nd4
{[%clk 0:02:27.5]} 16. Nxd4 {[%clk 0:02:42.5]} 16... cxd4 {[%clk 0:02:28.4]} 17.
Nb1 {[%clk 0:02:41.3]} 17... Bc6 {[%clk 0:02:24.8]} 18. c5 {[%clk 0:02:34.7]}
18... Nd7 {[%clk 0:02:23.5]} 19. Rc1 {[%clk 0:02:32]} 19... Qa5 {[%clk
0:02:20.9]} 20. Qc2 {[%clk 0:02:08]} 20... Rac8 {[%clk 0:02:18.4]} 21. Nd2
{[%clk 0:02:02.8]} 21... Bb5 {[%clk 0:02:11.5]} 22. b4 {[%clk 0:01:55.8]} 22...
axb3 {[%clk 0:02:10.6]} 23. Nxb3 {[%clk 0:01:55.9]} 23... Qa6 {[%clk 0:01:58.4]}
24. Bf1 {[%clk 0:01:48.4]} 24... Ba4 {[%clk 0:01:57.3]} 25. Qa2 {[%clk
0:01:38.4]} 25... Bxb3 {[%clk 0:01:53.9]} 26. Qxb3 {[%clk 0:01:38.6]} 26... Rxc5
{[%clk 0:01:54.3]} 27. Qb4 {[%clk 0:01:35.4]} 27... Rfc8 {[%clk 0:01:50.1]} 28.
Rxc5 {[%clk 0:01:31.7]} 28... Nxc5 {[%clk 0:01:51]} 29. Qxd4 {[%clk 0:00:52]}
29... Qxa3 {[%clk 0:01:48.5]} 30. Qe3 {[%clk 0:00:37.4]} 30... Kh7 {[%clk
0:01:38.4]} 31. Qf3 {[%clk 0:00:37.4]} 31... Nd7 {[%clk 0:01:28.9]} 32. h5
{[%clk 0:00:20.5]} 32... Qe7 {[%clk 0:01:10.3]} 33. hxg6+ {[%clk 0:00:19.7]}
33... fxg6 {[%clk 0:01:11.2]} 34. d4 {[%clk 0:00:20]} 34... Rf8 {[%clk
0:01:08.1]} 35. Bd3 {[%clk 0:00:19.5]} 35... Rf7 {[%clk 0:00:50.7]} 36. Qg4
{[%clk 0:00:18.2]} 36... Nf8 {[%clk 0:00:51]} 37. Rc1 {[%clk 0:00:17.3]} 37...
Qd8 {[%clk 0:00:45.1]} 38. Be3 {[%clk 0:00:16.1]} 38... Rc7 {[%clk 0:00:43.8]}
39. Rb1 {[%clk 0:00:15.6]} 39... Qe7 {[%clk 0:00:42.9]} 40. Kg2 {[%clk
0:00:15.7]} 40... Rc3 {[%clk 0:00:33]} 41. Qe2 {[%clk 0:00:15.1]} 41... Kg8
{[%clk 0:00:30.6]} 42. Ra1 {[%clk 0:00:14.1]} 42... Rc8 {[%clk 0:00:29.4]} 43.
Qd2 {[%clk 0:00:11.2]} 43... g5 {[%clk 0:00:27.9]} 44. Bc2 {[%clk 0:00:11.2]}
44... Qc7 {[%clk 0:00:27]} 45. Rc1 {[%clk 0:00:11.3]} 45... Qd7 {[%clk
0:00:25.6]} 46. Qd3 {[%clk 0:00:11.5]} 46... Rc7 {[%clk 0:00:23.4]} 47. Rb1
{[%clk 0:00:11.3]} 47... Qf7 {[%clk 0:00:22.6]} 48. g4 {[%clk 0:00:10.2]} 48...
Qd7 {[%clk 0:00:21.5]} 49. Rb2 {[%clk 0:00:09]} 49... Qc6 {[%clk 0:00:21.3]} 50.
Bd1 {[%clk 0:00:08.9]} 50... Qd7 {[%clk 0:00:18.6]} 51. Be2 {[%clk 0:00:08.9]}
51... Qf7 {[%clk 0:00:18.1]} 52. Qd1 {[%clk 0:00:09]} 52... Ng6 {[%clk
0:00:17.3]} 53. Bd3 {[%clk 0:00:09.5]} 53... Nf4+ {[%clk 0:00:17.6]} 54. Bxf4
{[%clk 0:00:10.1]} 54... Qxf4 {[%clk 0:00:18.5]} 55. Qf3 {[%clk 0:00:09.3]}
55... Rf7 {[%clk 0:00:17.6]} 56. Qxf4 {[%clk 0:00:09.2]} 56... Rxf4 {[%clk
0:00:18.5]} 57. Rxb7 {[%clk 0:00:08.9]} 57... Rxg4+ {[%clk 0:00:16.8]} 58. Kf1
{[%clk 0:00:09.2]} 58... Rxd4 {[%clk 0:00:16.4]} 59. Bg6 {[%clk 0:00:09.5]}
59... Rf4 {[%clk 0:00:14.4]} 60. Re7 {[%clk 0:00:09.2]} 60... Bxe5 {[%clk
0:00:13.8]} 61. Rxe6 {[%clk 0:00:09.7]} 61... Bf6 {[%clk 0:00:14.3]} 62. Bd3
{[%clk 0:00:09.2]} 62... Bd4 {[%clk 0:00:14.2]} 63. Re2 {[%clk 0:00:07.8]} 63...
Kg7 {[%clk 0:00:14.1]} 64. Rc2 {[%clk 0:00:07.9]} 64... Rf7 {[%clk 0:00:11.6]}
65. Kg2 {[%clk 0:00:07.8]} 65... h5 {[%clk 0:00:12]} 66. f3 {[%clk 0:00:07.6]}
66... Bf6 {[%clk 0:00:10.3]} 67. Rc6 {[%clk 0:00:07.3]} 67... d4 {[%clk
0:00:10]} 68. Re6 {[%clk 0:00:06.9]} 68... Rc7 {[%clk 0:00:09.7]} 69. Rd6 {[%clk
0:00:06.2]} 69... Kf7 {[%clk 0:00:07.6]} 70. Be4 {[%clk 0:00:05.7]} 70... Ke7
{[%clk 0:00:07.6]} 71. Ra6 {[%clk 0:00:05.9]} 71... Rd7 {[%clk 0:00:06.2]} 72.
Bd3 {[%clk 0:00:06]} 72... Rb7 {[%clk 0:00:06.7]} 73. Be4 {[%clk 0:00:05.9]}
73... Rb2+ {[%clk 0:00:07]} 74. Kf1 {[%clk 0:00:05.7]} 74... Be5 {[%clk
0:00:07.1]} 75. Bd5 {[%clk 0:00:05.8]} 75... Bf4 {[%clk 0:00:06.7]} 76. Re6+
{[%clk 0:00:05.9]} 76... Kd7 {[%clk 0:00:07.2]} 77. Rh6 {[%clk 0:00:05.8]} 77...
d3 {[%clk 0:00:07.3]} 78. Bc4 {[%clk 0:00:05]} 78... Rb1+ {[%clk 0:00:07]} 79.
Kf2 {[%clk 0:00:04.4]} 79... d2 {[%clk 0:00:07.9]} 80. Be2 {[%clk 0:00:02.7]}
80... d1=Q {[%clk 0:00:08.2]} 81. Bxd1 {[%clk 0:00:03.4]} 81... Rxd1 {[%clk
0:00:08.8]} 82. Rxh5 {[%clk 0:00:04.3]} 82... Rd2+ {[%clk 0:00:09.4]} 83. Kf1
{[%clk 0:00:04.6]} 83... Ke6 {[%clk 0:00:09.9]} 84. Rh7 {[%clk 0:00:05.3]} 84...
Kf5 {[%clk 0:00:10.2]} 85. Rf7+ {[%clk 0:00:05.5]} 85... Ke5 {[%clk 0:00:10.7]}
86. Re7+ {[%clk 0:00:05.6]} 86... Kd4 {[%clk 0:00:11.2]} 87. Re4+ {[%clk
0:00:05.1]} 87... Kd3 {[%clk 0:00:11.5]} 88. Re8 {[%clk 0:00:04.9]} 88... Be3
{[%clk 0:00:10.8]} 89. Rd8+ {[%clk 0:00:04.1]} 89... Bd4 {[%clk 0:00:11.1]} 90.
Re8 {[%clk 0:00:05]} 90... Rf2+ {[%clk 0:00:10.9]} 91. Ke1 {[%clk 0:00:04.8]}
91... Rxf3 {[%clk 0:00:11.2]} 92. Rg8 {[%clk 0:00:05.1]} 92... Bc3+ {[%clk
0:00:11.3]} 93. Kd1 {[%clk 0:00:05.5]} 93... Rf1# {[%clk 0:00:12.2]} 0-1

[Event "*** Titled Tuesday Blitz"]
[Site "Chess.com"]
[Date "2021.03.16"]
[Round "5"]
[White "NishaOnYoutube"]
[Black "Aslanov_Umid"]
[Result "0-1"]
[WhiteElo "2177"]
[BlackElo "2395"]
[TimeControl "180+1"]
[EndTime "10:56:55 PDT"]
[Termination "Aslanov_Umid won on time"]

1. e4 {[%clk 0:03:00.9]} 1... c5 {[%clk 0:02:57.5]} 2. d4 {[%clk 0:02:59.7]}
2... cxd4 {[%clk 0:02:56.9]} 3. c3 {[%clk 0:03:00.1]} 3... d3 {[%clk 0:02:56.8]}
4. Bxd3 {[%clk 0:02:58.7]} 4... d6 {[%clk 0:02:56.3]} 5. c4 {[%clk 0:02:58.1]}
5... Nc6 {[%clk 0:02:57.2]} 6. h3 {[%clk 0:02:57]} 6... g6 {[%clk 0:02:58]} 7.
Nf3 {[%clk 0:02:56.1]} 7... Bg7 {[%clk 0:02:58.9]} 8. O-O {[%clk 0:02:52]} 8...
Nf6 {[%clk 0:02:59.3]} 9. Nc3 {[%clk 0:02:50.1]} 9... O-O {[%clk 0:02:59.8]} 10.
Be3 {[%clk 0:02:45.6]} 10... b6 {[%clk 0:02:58.6]} 11. Rc1 {[%clk 0:02:44.2]}
11... Ba6 {[%clk 0:02:58.7]} 12. b3 {[%clk 0:02:38.3]} 12... Rc8 {[%clk
0:02:58.7]} 13. Qd2 {[%clk 0:02:14.6]} 13... Nd7 {[%clk 0:02:57.7]} 14. Rfd1
{[%clk 0:02:12.2]} 14... Re8 {[%clk 0:02:56.9]} 15. Bf1 {[%clk 0:02:00.5]} 15...
Nde5 {[%clk 0:02:50.6]} 16. Nxe5 {[%clk 0:01:52.7]} 16... Nxe5 {[%clk
0:02:51.5]} 17. f4 {[%clk 0:01:37.3]} 17... Nd7 {[%clk 0:02:50.8]} 18. Be2
{[%clk 0:01:34.4]} 18... Nc5 {[%clk 0:02:49.7]} 19. Bf3 {[%clk 0:01:32.9]} 19...
Bb7 {[%clk 0:02:35.9]} 20. Nd5 {[%clk 0:01:17.4]} 20... Bxd5 {[%clk 0:02:33.7]}
21. exd5 {[%clk 0:01:09.3]} 21... Nd7 {[%clk 0:02:31.8]} 22. Bg4 {[%clk
0:01:02.7]} 22... Qc7 {[%clk 0:02:28.9]} 23. Bxd7 {[%clk 0:00:58.1]} 23... Qxd7
{[%clk 0:02:28.2]} 24. Bd4 {[%clk 0:00:59]} 24... Bxd4+ {[%clk 0:02:14.3]} 25.
Qxd4 {[%clk 0:00:59.9]} 25... e5 {[%clk 0:02:07.5]} 26. dxe6 {[%clk 0:00:58.7]}
26... Rxe6 {[%clk 0:02:07.4]} 27. f5 {[%clk 0:00:55.1]} 27... gxf5 {[%clk
0:02:00.3]} 28. Rf1 {[%clk 0:00:54.1]} 28... Rg6 {[%clk 0:01:57.4]} 29. Rc3
{[%clk 0:00:47.8]} 29... Re8 {[%clk 0:01:56.4]} 30. Re3 {[%clk 0:00:33.8]} 30...
Rxe3 {[%clk 0:01:51.9]} 31. Qxe3 {[%clk 0:00:33.4]} 31... Qe6 {[%clk 0:01:52.4]}
32. Qf3 {[%clk 0:00:29.4]} 32... Qe4 {[%clk 0:01:41.6]} 33. Rf2 {[%clk
0:00:23.7]} 33... Kf8 {[%clk 0:01:15.8]} 34. Kh1 {[%clk 0:00:20.6]} 34... Qxf3
{[%clk 0:01:05.8]} 35. Rxf3 {[%clk 0:00:20.3]} 35... Rf6 {[%clk 0:01:06.2]} 36.
Rf4 {[%clk 0:00:18.3]} 36... Ke7 {[%clk 0:01:04.7]} 37. Rh4 {[%clk 0:00:17.2]}
37... h6 {[%clk 0:01:05.1]} 38. Rf4 {[%clk 0:00:17.1]} 38... Ke6 {[%clk
0:01:05.6]} 39. g3 {[%clk 0:00:17.2]} 39... Ke5 {[%clk 0:01:04.8]} 40. Kg2
{[%clk 0:00:17.2]} 40... d5 {[%clk 0:00:59.4]} 41. cxd5 {[%clk 0:00:16.7]} 41...
Kxd5 {[%clk 0:01:00.3]} 42. Ra4 {[%clk 0:00:17.2]} 42... a5 {[%clk 0:00:56.3]}
43. Kf3 {[%clk 0:00:17.5]} 43... Rc6 {[%clk 0:00:49.9]} 44. Rf4 {[%clk
0:00:16.8]} 44... Ke5 {[%clk 0:00:48.6]} 45. Rh4 {[%clk 0:00:16.5]} 45... b5
{[%clk 0:00:39.7]} 46. Rh5 {[%clk 0:00:15.6]} 46... Rc3+ {[%clk 0:00:36.7]} 47.
Kf2 {[%clk 0:00:13.9]} 47... Rc2+ {[%clk 0:00:36.9]} 48. Kf3 {[%clk 0:00:12.6]}
48... Rxa2 {[%clk 0:00:35.6]} 49. g4 {[%clk 0:00:12.9]} 49... b4 {[%clk
0:00:18.8]} 50. Rxf5+ {[%clk 0:00:13]} 50... Ke6 {[%clk 0:00:18.8]} 51. Rb5
{[%clk 0:00:12.7]} 51... Ra3 {[%clk 0:00:18.7]} 52. Ke4 {[%clk 0:00:12.6]} 52...
Rxb3 {[%clk 0:00:18.4]} 53. Rxa5 {[%clk 0:00:12.5]} 53... Rxh3 {[%clk
0:00:18.8]} 54. Rb5 {[%clk 0:00:11.3]} 54... b3 {[%clk 0:00:19.2]} 55. Rb6+
{[%clk 0:00:11.1]} 55... Ke7 {[%clk 0:00:19]} 56. Kf4 {[%clk 0:00:10.1]} 56...
Kf8 {[%clk 0:00:19.1]} 57. Kf5 {[%clk 0:00:09.5]} 57... Kg7 {[%clk 0:00:19.2]}
58. Ke5 {[%clk 0:00:09]} 58... Rc3 {[%clk 0:00:17.4]} 59. Kf5 {[%clk 0:00:08.8]}
59... Rc5+ {[%clk 0:00:16.9]} 60. Kf4 {[%clk 0:00:09]} 60... Rc4+ {[%clk
0:00:17.1]} 61. Kf5 {[%clk 0:00:09.3]} 61... Rc3 {[%clk 0:00:16.7]} 62. Kf4
{[%clk 0:00:09.2]} 62... f6 {[%clk 0:00:16.4]} 63. Kf5 {[%clk 0:00:09.2]} 63...
Rc5+ {[%clk 0:00:16.9]} 64. Kf4 {[%clk 0:00:08.8]} 64... Rc3 {[%clk 0:00:15.8]}
65. Kf5 {[%clk 0:00:09.1]} 65... Rf3+ {[%clk 0:00:14.2]} 66. Ke4 {[%clk
0:00:08.9]} 66... Rg3 {[%clk 0:00:10.5]} 67. Kf5 {[%clk 0:00:09.2]} 67... Rd3
{[%clk 0:00:05.5]} 68. Ke4 {[%clk 0:00:08.3]} 68... Rd7 {[%clk 0:00:04.9]} 69.
Rxb3 {[%clk 0:00:06.7]} 69... Kg6 {[%clk 0:00:04.9]} 70. Kf4 {[%clk 0:00:06.4]}
70... Rd4+ {[%clk 0:00:04.7]} 71. Kg3 {[%clk 0:00:05.5]} 71... Rd5 {[%clk
0:00:05.2]} 72. Rb8 {[%clk 0:00:04.8]} 72... Rd7 {[%clk 0:00:04.5]} 73. Rb5
{[%clk 0:00:04.5]} 73... Rg7 {[%clk 0:00:03.6]} 74. Kf4 {[%clk 0:00:04.7]} 74...
Rd7 {[%clk 0:00:03.9]} 75. Ra5 {[%clk 0:00:03.5]} 75... Rd4+ {[%clk 0:00:03.9]}
76. Kg3 {[%clk 0:00:02.3]} 76... Rd6 {[%clk 0:00:04.4]} 77. Kf4 {[%clk
0:00:02.5]} 77... Rd3 {[%clk 0:00:04.7]} 78. Rb5 {[%clk 0:00:01.1]} 78... Rd4+
{[%clk 0:00:04.9]} 0-1

[Event "*** Titled Tuesday Blitz"]
[Site "Chess.com"]
[Date "2021.03.16"]
[Round "6"]
[White "AwareIdea"]
[Black "NateSolon"]
[Result "0-1"]
[WhiteElo "2430"]
[BlackElo "2562"]
[TimeControl "180+1"]
[EndTime "11:01:48 PDT"]
[Termination "NateSolon won by checkmate"]

1. d4 {[%clk 0:03:00.9]} 1... Nf6 {[%clk 0:02:59.8]} 2. c4 {[%clk 0:03:00.8]}
2... e6 {[%clk 0:03:00]} 3. g3 {[%clk 0:03:00.7]} 3... d5 {[%clk 0:02:59.9]} 4.
Bg2 {[%clk 0:03:00.8]} 4... Be7 {[%clk 0:03:00]} 5. Nf3 {[%clk 0:03:01]} 5...
O-O {[%clk 0:03:00.3]} 6. Nc3 {[%clk 0:03:01.1]} 6... dxc4 {[%clk 0:02:57.7]} 7.
Ne5 {[%clk 0:03:01.4]} 7... Nc6 {[%clk 0:02:52.3]} 8. Bxc6 {[%clk 0:03:01.8]}
8... bxc6 {[%clk 0:02:52.7]} 9. Nxc6 {[%clk 0:03:02.7]} 9... Qe8 {[%clk
0:02:53.2]} 10. Nxe7+ {[%clk 0:03:03.1]} 10... Qxe7 {[%clk 0:02:54.1]} 11. Qa4
{[%clk 0:03:03.4]} 11... e5 {[%clk 0:02:39]} 12. dxe5 {[%clk 0:03:03.2]} 12...
Qxe5 {[%clk 0:02:39.9]} 13. Qxc4 {[%clk 0:03:00.7]} 13... Bb7 {[%clk 0:02:35.4]}
14. Bf4 {[%clk 0:02:55.7]} 14... Qh5 {[%clk 0:02:33.4]} 15. f3 {[%clk
0:02:51.1]} 15... Rfe8 {[%clk 0:02:28.2]} 16. Kf2 {[%clk 0:02:47.7]} 16... Re6
{[%clk 0:02:11.8]} 17. Qxc7 {[%clk 0:02:42.7]} 17... Bc6 {[%clk 0:01:55]} 18.
Rad1 {[%clk 0:02:40.8]} 18... Rae8 {[%clk 0:01:54.3]} 19. Rd8 {[%clk 0:02:38.1]}
19... Rxe2+ {[%clk 0:01:49.6]} 20. Nxe2 {[%clk 0:02:35]} 20... Qxf3+ {[%clk
0:01:48.9]} 21. Kg1 {[%clk 0:02:21.8]} 21... Qg2# {[%clk 0:01:47.9]} 0-1

[Event "*** Titled Tuesday Blitz"]
[Site "Chess.com"]
[Date "2021.03.16"]
[Round "6"]
[White "Srisshhhtea"]
[Black "gxbg2000"]
[Result "1-0"]
[WhiteElo "2293"]
[BlackElo "1969"]
[TimeControl "180+1"]
[EndTime "11:02:04 PDT"]
[Termination "Srisshhhtea won by resignation"]

1. d4 {[%clk 0:03:00.9]} 1... d5 {[%clk 0:02:47]} 2. c4 {[%clk 0:03:00.4]} 2...
e6 {[%clk 0:02:46.3]} 3. Nf3 {[%clk 0:02:57.7]} 3... Nf6 {[%clk 0:02:46.4]} 4.
Nbd2 {[%clk 0:02:54.9]} 4... Be7 {[%clk 0:02:46.1]} 5. Qc2 {[%clk 0:02:53.6]}
5... h6 {[%clk 0:02:43.3]} 6. e3 {[%clk 0:02:51.7]} 6... c6 {[%clk 0:02:42.3]}
7. Bd3 {[%clk 0:02:49.7]} 7... Nbd7 {[%clk 0:02:42]} 8. b3 {[%clk 0:02:48.3]}
8... a6 {[%clk 0:02:41.1]} 9. Bb2 {[%clk 0:02:46.6]} 9... Qc7 {[%clk 0:02:40.1]}
10. h3 {[%clk 0:02:42.1]} 10... Qd6 {[%clk 0:02:30.5]} 11. O-O-O {[%clk
0:02:30.9]} 11... b5 {[%clk 0:02:26.6]} 12. c5 {[%clk 0:02:28.1]} 12... Qc7
{[%clk 0:02:26.2]} 13. g4 {[%clk 0:02:25.5]} 13... a5 {[%clk 0:02:16.8]} 14. g5
{[%clk 0:02:15.5]} 14... hxg5 {[%clk 0:02:16.1]} 15. Nxg5 {[%clk 0:02:16.4]}
15... b4 {[%clk 0:01:57.1]} 16. Bg6 {[%clk 0:02:14.7]} 16... Rf8 {[%clk
0:01:37.2]} 17. Nxe6 {[%clk 0:02:13]} 1-0

[Event "*** Titled Tuesday Blitz"]
[Site "Chess.com"]
[Date "2021.03.16"]
[Round "6"]
[White "MuhittinBuker"]
[Black "MateusViageiro"]
[Result "0-1"]
[WhiteElo "2189"]
[BlackElo "2364"]
[TimeControl "180+1"]
[EndTime "11:02:42 PDT"]
[Termination "MateusViageiro won by resignation"]

1. d4 {[%clk 0:03:00.9]} 1... d5 {[%clk 0:02:57.4]} 2. c4 {[%clk 0:03:01]} 2...
e6 {[%clk 0:02:56.9]} 3. Nc3 {[%clk 0:03:01.3]} 3... Nf6 {[%clk 0:02:56.8]} 4.
Bg5 {[%clk 0:02:59.9]} 4... a6 {[%clk 0:02:56.7]} 5. cxd5 {[%clk 0:02:59.9]}
5... exd5 {[%clk 0:02:56.8]} 6. Nf3 {[%clk 0:02:59.9]} 6... Nbd7 {[%clk
0:02:54.5]} 7. e3 {[%clk 0:02:59]} 7... h6 {[%clk 0:02:53.5]} 8. Bh4 {[%clk
0:02:57.9]} 8... c6 {[%clk 0:02:53.4]} 9. Bd3 {[%clk 0:02:56.7]} 9... Be7 {[%clk
0:02:50.2]} 10. O-O {[%clk 0:02:56.2]} 10... O-O {[%clk 0:02:50.4]} 11. Qc2
{[%clk 0:02:56.7]} 11... Re8 {[%clk 0:02:50.2]} 12. Rab1 {[%clk 0:02:55.4]}
12... Ne4 {[%clk 0:02:48.3]} 13. Bxe7 {[%clk 0:02:54.4]} 13... Qxe7 {[%clk
0:02:49.2]} 14. Bxe4 {[%clk 0:02:54.9]} 14... dxe4 {[%clk 0:02:48.4]} 15. Nd2
{[%clk 0:02:55.4]} 15... Nf6 {[%clk 0:02:48.4]} 16. b4 {[%clk 0:02:55.3]} 16...
a5 {[%clk 0:02:45.9]} 17. b5 {[%clk 0:02:52]} 17... c5 {[%clk 0:02:41.6]} 18. d5
{[%clk 0:02:25.8]} 18... Qe5 {[%clk 0:02:33.8]} 19. Nc4 {[%clk 0:02:21.2]} 19...
Qh5 {[%clk 0:02:30.8]} 20. d6 {[%clk 0:02:09.3]} 20... Ng4 {[%clk 0:02:24.7]}
21. h3 {[%clk 0:02:08.9]} 21... Nf6 {[%clk 0:02:24.8]} 22. Qd1 {[%clk 0:02:06]}
22... Bg4 {[%clk 0:02:18.7]} 23. Ne2 {[%clk 0:01:20.3]} 23... Bxe2 {[%clk
0:02:14.6]} 0-1